bitfinex-derivatives/quotes_BTCF0:USTF0_20251217
["timestamp","ask_amount","ask_price","bid_price","bid_amount"]
[1765981132959,0.67556,87845.0,87844.0,0.0113874]
[1765981133359,0.67556,87845.0,87844.0,0.3508874]
[1765981133665,0.3608,87854.0,87853.0,0.7078762]
[1765981133971,0.20061,87867.0,87855.0,0.69649]
[1765981134159,0.20061,87867.0,87855.0,1.41137]
[1765981134468,0.3608,87871.0,87870.0,0.707874]
[1765981134658,0.3608,87871.0,87870.0,1.422954]
[1765981134965,0.56141,87876.0,87875.0,0.7078734]
[1765981135265,0.20061,87876.0,87875.0,0.7078734]
[1765981135768,0.87617,87876.0,87875.0,0.7078734]
[1765981135973,0.87617,87876.0,87875.0,0.7267834]
[1765981136367,0.87917,87876.0,87875.0,0.7267834]
[1765981136964,0.87917,87876.0,87875.0,0.7267434]
[1765981137364,0.87917,87876.0,87875.0,1.0662434]
[1765981139579,0.87917,87876.0,87875.0,0.7267434]
[1765981139876,0.87917,87876.0,87875.0,0.0113834]
[1765981140069,0.87917,87876.0,87875.0,0.7265834]
[1765981140577,0.87917,87876.0,87875.0,1.0660834]
[1765981140875,0.20361,87876.0,87875.0,1.0660834]
[1765981141277,0.003,87876.0,87875.0,1.0660834]
[1765981141477,0.67856,87876.0,87875.0,1.0660834]
[1765981141671,0.67856,87876.0,87875.0,1.0659634]
[1765981142268,0.67856,87876.0,87867.0,0.0001707]
[1765981142269,0.003,87876.0,87871.0,0.0113838]
[1765981142474,0.67556,87868.0,87867.0,0.0115551]
[1765981142686,0.67556,87868.0,87867.0,0.4701551]
[1765981142868,0.20061,87870.0,87869.0,0.69649]
[1765981143769,1.03736,87876.0,87875.0,0.7078734]
[1765981143963,0.70363,87876.0,87875.0,0.7078734]
[1765981144675,0.001,87876.0,87875.0,0.7078734]
[1765981145174,0.54234,87880.0,87879.0,0.6999129]
[1765981145472,0.20061,87880.0,87879.0,1.4150329]
[1765981146174,0.90314,87890.0,87889.0,0.6999116]
[1765981146378,1.24799,87890.0,87889.0,0.6999116]
[1765981146679,0.68658,87887.0,87886.0,0.0113819]
[1765981146879,0.68658,87876.0,87875.0,0.3693834]
[1765981147072,0.68658,87876.0,87875.0,0.8512234]
[1765981147474,0.68658,87876.0,87875.0,0.7264234]
[1765981147875,0.68658,87876.0,87875.0,1.0844234]
[1765981148675,0.68658,87876.0,87875.0,1.0864234]
[1765981149176,0.68658,87876.0,87875.0,1.0874234]
[1765981149569,0.68658,87876.0,87875.0,0.7029134]
[1765981149772,0.68658,87876.0,87875.0,1.4178334]
[1765981149972,0.68658,87876.0,87875.0,1.4168334]
[1765981150168,0.68658,87876.0,87875.0,1.4188334]
[1765981150368,0.68658,87888.0,87887.0,0.6999118]
[1765981150574,0.68658,87888.0,87887.0,0.0113818]
[1765981150882,0.68658,87888.0,87878.0,0.11661436]
[1765981150883,0.68658,87876.0,87875.0,0.0153834]
[1765981151078,0.68658,87876.0,87875.0,0.7303034]
[1765981151266,0.68658,87876.0,87875.0,0.7302234]
[1765981151466,0.68658,87876.0,87875.0,0.7312234]
[1765981151671,0.68658,87876.0,87875.0,0.0163834]
[1765981151870,0.68658,87871.0,87870.0,0.3608]
[1765981152081,0.68658,87871.0,87845.0,0.0113872]
[1765981152082,0.68658,87868.0,87867.0,0.7000851]
[1765981152477,1.04738,87868.0,87867.0,0.0115551]
[1765981152877,0.3608,87868.0,87867.0,0.7000851]
[1765981153081,0.34173,87876.0,87875.0,0.6999134]
[1765981153270,0.19833,87880.0,87879.0,0.6999129]
[1765981153474,0.19833,87880.0,87879.0,1.4149129]
[1765981153673,0.88491,87880.0,87879.0,0.7263829]
[1765981153876,0.88491,87880.0,87879.0,1.0637029]
[1765981153877,0.19833,87880.0,87879.0,1.0637029]
[1765981154085,1.04738,87889.0,87888.0,0.68853]
[1765981154289,1.04738,87889.0,87888.0,0.6999117]
[1765981154586,1.04738,87889.0,87888.0,0.0113817]
[1765981155884,1.04738,87889.0,87888.0,0.6999117]
[1765981156083,1.04838,87889.0,87888.0,0.6999117]
[1765981156579,1.04938,87889.0,87888.0,0.3693817]
[1765981157076,1.04938,87889.0,87888.0,0.0113817]
[1765981157277,0.68658,87888.0,87887.0,0.71504]
[1765981157696,0.34485,87874.0,87873.0,0.73006296]
[1765981157875,0.68658,87874.0,87873.0,1.4149136]
[1765981158076,0.68658,87874.0,87873.0,1.0843036]
[1765981159388,0.68658,87874.0,87873.0,1.0853036]
[1765981159888,0.68658,87874.0,87873.0,1.11545296]
[1765981160290,0.68658,87874.0,87873.0,1.0853036]
[1765981162385,0.68658,87874.0,87873.0,1.4156736]
[1765981163388,0.68658,87874.0,87873.0,1.47569632]
[1765981164194,0.68658,87874.0,87873.0,1.4156736]
[1765981164493,0.68658,87874.0,87873.0,1.4155936]
[1765981164894,0.19833,87880.0,87879.0,0.6999129]
[1765981164895,0.88491,87880.0,87879.0,0.6999129]
[1765981165285,0.88491,87880.0,87879.0,0.74028387]
[1765981165481,0.88491,87880.0,87878.0,0.04037097]
[1765981165698,0.66283,87877.0,87876.0,0.0113833]
[1765981166293,0.66283,87868.0,87865.0,0.04037097]
[1765981166486,0.86535,87858.0,87856.0,0.04037097]
[1765981166685,0.66283,87855.0,87854.0,0.0113861]
[1765981166893,0.66283,87855.0,87854.0,0.70959707]
[1765981167091,0.66283,87855.0,87854.0,0.6692261]
[1765981167293,0.66283,87855.0,87854.0,0.0113861]
[1765981167596,0.66283,87852.0,87851.0,0.0113865]
[1765981167796,1.02363,87852.0,87851.0,0.70959747]
[1765981167995,0.66283,87852.0,87851.0,0.70959747]
[1765981168389,0.66283,87852.0,87851.0,0.6692265]
[1765981168991,0.66283,87852.0,87851.0,0.6722265]
[1765981169596,0.66283,87852.0,87851.0,0.6762265]
[1765981170098,0.66283,87852.0,87851.0,0.0183865]
[1765981170990,1.02363,87852.0,87851.0,0.007]
[1765981172709,1.02363,87852.0,87851.0,0.66484]
[1765981174192,0.3608,87852.0,87851.0,0.66484]
[1765981174388,0.69216,87852.0,87851.0,0.66484]
[1765981174593,0.3608,87852.0,87851.0,0.66484]
[1765981174997,1.04255,87852.0,87851.0,0.007]
[1765981176689,0.693137,87847.0,87846.0,0.0001707]
[1765981176892,0.68175,87847.0,87846.0,7e-07]
[1765981177099,0.68175,87836.0,87835.0,0.54604]
[1765981177294,1.04255,87836.0,87835.0,0.54604]
[1765981177606,1.04255,87836.0,87835.0,0.5574286]
[1765981178001,1.04255,87836.0,87835.0,0.0113886]
[1765981179392,1.04255,87836.0,87835.0,0.0163886]
[1765981179797,1.04255,87836.0,87835.0,0.0213886]
[1765981181104,1.04255,87836.0,87835.0,0.6980086]
[1765981181303,0.68175,87836.0,87835.0,0.6980086]
[1765981181506,0.68175,87836.0,87835.0,0.01]
[1765981183295,0.68175,87836.0,87835.0,0.3502]
[1765981183500,0.68175,87836.0,87835.0,0.68662]
[1765981183809,0.87925,87840.0,87839.0,0.0113881]
[1765981184606,0.87925,87840.0,87839.0,0.6880081]
[1765981185111,0.87925,87840.0,87839.0,0.6920081]
[1765981185314,0.87925,87840.0,87839.0,0.6970081]
[1765981188108,0.1975,87850.0,87839.0,1.0578081]
[1765981188312,0.68175,87888.0,87887.0,0.0113818]
[1765981188509,0.68175,87888.0,87887.0,0.6880018]
[1765981188702,0.68175,87888.0,87887.0,0.0113818]
[1765981189207,0.68175,87888.0,87887.0,0.6880018]
[1765981189409,0.6819207,87896.0,87895.0,0.6880008]
[1765981189608,0.6819207,87896.0,87895.0,1.0488008]
[1765981190100,0.3424507,87896.0,87895.0,1.0488008]
[1765981190300,0.0001707,87896.0,87895.0,1.0488008]
[1765981190709,0.00227538,87898.0,87897.0,0.67662]
[1765981192611,0.00227538,87898.0,87897.0,0.67762]
[1765981192909,0.00227538,87898.0,87897.0,1.03842]
[1765981193207,0.00227538,87898.0,87897.0,0.67762]
[1765981193406,0.00327538,87898.0,87897.0,0.67762]
[1765981194604,0.68175,87901.0,87900.0,0.3515802]
[1765981194804,0.68175,87901.0,87900.0,1.0670602]
[1765981195008,0.68175,87901.0,87900.0,1.2760302]
[1765981195409,0.68175,87901.0,87897.0,0.001]
[1765981195410,0.68175,87898.0,87897.0,0.001]
[1765981195913,0.68175,87898.0,87897.0,1.01392]
[1765981196418,0.68175,87893.0,87892.0,0.3403707]
[1765981196606,0.68175,87893.0,87892.0,0.6767907]
[1765981196808,0.68175,87893.0,87892.0,1.3921907]
[1765981197007,0.68175,87893.0,87892.0,0.6767907]
[1765981197208,0.68175,87893.0,87892.0,1.0557707]
[1765981197610,0.68175,87893.0,87892.0,0.3403707]
[1765981197919,0.68175,87893.0,87892.0,1.3921507]
[1765981199319,0.68275,87893.0,87892.0,0.0001707]
[1765981199813,0.33947,87880.0,87879.0,0.3515828]
[1765981200018,0.68175,87880.0,87879.0,0.6880028]
[1765981200319,0.68275,87893.0,87892.0,0.6880012]
[1765981200507,0.001,87893.0,87892.0,1.7640812]
[1765981200707,0.87925,87910.0,87909.0,0.011379]
[1765981200906,0.68175,87910.0,87909.0,0.687999]
[1765981201113,0.34228,87917.0,87916.0,0.6879981]
[1765981201313,0.0001707,87918.0,87917.0,0.67662]
[1765981201823,0.3608,87927.0,87926.0,0.67662]
[1765981202008,0.3608,87927.0,87926.0,1.4034768]
[1765981202206,0.3608,87927.0,87920.0,0.20897]
[1765981202207,0.68175,87921.0,87920.0,0.6879976]
[1765981202421,0.68175,87921.0,87920.0,1.6124476]
[1765981202612,0.34228,87921.0,87920.0,1.6124476]
[1765981202814,1.04255,87927.0,87926.0,0.0113768]
[1765981203320,0.68575,87927.0,87926.0,0.6879968]
[1765981203917,0.00316932,87927.0,87926.0,1.0879968]
[1765981204122,0.00316932,87927.0,87926.0,1.0487968]
[1765981204414,0.34455434,87938.0,87937.0,0.6879954]
[1765981204616,0.34455434,87938.0,87930.0,0.20897]
[1765981204617,0.70068,87931.0,87930.0,0.7027463]
[1765981204819,0.34998,87931.0,87930.0,0.9047363]
[1765981205121,0.00227434,87938.0,87937.0,0.7027454]
[1765981205320,0.00227434,87938.0,87937.0,1.0635454]
[1765981206422,0.00227434,87938.0,87937.0,1.7789054]
[1765981206423,0.35186964,87938.0,87937.0,1.7789054]
[1765981206609,0.00188964,87938.0,87937.0,1.7789054]
[1765981206808,0.00288964,87938.0,87937.0,1.7789054]
[1765981207016,0.00488964,87938.0,87937.0,1.7789054]
[1765981208620,0.00488964,87938.0,87937.0,1.7787854]
[1765981210624,0.69067964,87938.0,87937.0,1.0635454]
[1765981210824,0.68579,87934.0,87933.0,0.3453259]
[1765981211027,0.68579,87934.0,87933.0,1.0603659]
[1765981211728,0.00488964,87938.0,87937.0,0.6959854]
[1765981212030,0.00488964,87938.0,87937.0,1.0567854]
[1765981212226,0.00288964,87938.0,87937.0,1.0567854]
[1765981212425,0.00188964,87938.0,87937.0,1.0567854]
[1765981213429,0.00288964,87938.0,87937.0,1.0567854]
[1765981215530,0.68867964,87938.0,87937.0,1.7716654]
[1765981215730,0.68867964,87938.0,87937.0,1.0567854]
[1765981215923,0.68867964,87938.0,87937.0,1.7715854]
[1765981216124,0.00288964,87938.0,87937.0,1.7715854]
[1765981217328,0.68867964,87938.0,87937.0,1.07456557]
[1765981217630,0.68867964,87938.0,87937.0,1.0869354]
[1765981218028,0.68867964,87938.0,87937.0,0.35225352]
[1765981218229,0.81931,87930.0,87929.0,6.1e-07]
[1765981218536,0.68579,87908.0,87907.0,0.0886192]
[1765981218832,0.68579,87908.0,87907.0,0.10640615]
[1765981219032,0.68579,87908.0,87907.0,0.44035615]
[1765981219225,0.68579,87917.0,87916.0,0.011378]
[1765981220035,0.68579,87917.0,87916.0,0.345328]
[1765981220232,0.3436,87917.0,87916.0,1.42865401]
[1765981220433,0.68596028,87925.0,87924.0,0.695987]
[1765981220633,0.68596028,87925.0,87912.0,0.19829]
[1765981220634,0.68579,87912.0,87907.0,0.005]
[1765981220843,0.68579,87909.0,87907.0,0.002]
[1765981221135,0.68579,87874.0,87873.0,0.0113836]
[1765981221438,0.68579,87874.0,87873.0,0.0652]
[1765981221623,0.68579,87866.0,87865.0,0.7268246]
[1765981221825,0.091645,87887.0,87876.0,0.0113832]
[1765981221826,0.68579,87877.0,87876.0,0.0113832]
[1765981222028,0.68579,87877.0,87876.0,0.68461]
[1765981222223,0.68579,87877.0,87868.0,0.19829]
[1765981222224,0.68579,87869.0,87868.0,0.53224]
[1765981222433,0.68579,87869.0,87868.0,0.19829]
[1765981222623,0.68579,87869.0,87868.0,0.19222393]
[1765981222823,0.68579,87866.0,87865.0,0.71544]
[1765981223231,0.68579,87866.0,87865.0,1.04939]
[1765981223833,0.68579,87866.0,87865.0,1.05139]
[1765981224237,0.68579,87866.0,87865.0,1.05239]
[1765981224430,1.40739,87866.0,87865.0,1.05239]
[1765981224925,0.7216,87866.0,87865.0,1.05239]
[1765981225635,0.32513075,87866.0,87865.0,1.05239]
[1765981225835,0.3608,87879.0,87878.0,0.695993]
[1765981227932,0.00017071,87885.0,87884.0,0.6959922]
[1765981228532,0.36097071,87885.0,87884.0,0.6959922]
[1765981228731,0.36097071,87885.0,87880.0,0.3453327]
[1765981228732,0.68579,87881.0,87880.0,0.3453327]
[1765981228934,0.68579,87881.0,87880.0,0.7008227]
[1765981229140,0.36097071,87885.0,87876.0,0.00017071]
[1765981229141,0.68579,87877.0,87876.0,0.00017071]
[1765981230438,0.68579,87877.0,87876.0,0.68578071]
[1765981230938,0.68579,87877.0,87876.0,0.00117071]
[1765981231139,1.4187731,87877.0,87876.0,0.00117071]
[1765981231338,1.4187731,87877.0,87876.0,7.1e-07]
[1765981231644,0.68579,87859.0,87858.0,0.00227641]
[1765981231840,1.04659,87859.0,87858.0,0.00227641]
[1765981232942,0.3608,87859.0,87858.0,0.68988641]
[1765981233336,0.00017071,87867.0,87866.0,0.6959946]
[1765981233539,0.00017071,87867.0,87866.0,1.4118746]
[1765981234033,0.68596071,87867.0,87866.0,1.4118746]
[1765981234237,0.68596071,87867.0,87866.0,1.0612146]
[1765981234742,0.68596071,87867.0,87866.0,0.0123846]
[1765981234945,0.68596071,87867.0,87866.0,0.001]
[1765981235338,0.68596071,87867.0,87866.0,0.003]
[1765981240552,1.04676071,87867.0,87866.0,0.003]
[1765981241642,0.70457071,87867.0,87866.0,0.70716]
[1765981241842,0.36097071,87867.0,87866.0,0.70716]
[1765981242850,0.69166071,87867.0,87866.0,0.70716]
[1765981243352,0.69166071,87867.0,87866.0,0.003]
[1765981243353,1.05086071,87867.0,87866.0,0.003]
[1765981245159,0.68989,87862.0,87861.0,0.0113851]
[1765981246059,1.05086071,87867.0,87866.0,0.7155446]
[1765981247161,0.3608,87885.0,87884.0,0.7155422]
[1765981247354,0.68989,87900.0,87899.0,0.35519]
[1765981247661,0.68989,87897.0,87896.0,0.0113806]
[1765981247866,0.68989,87872.0,87871.0,0.0113838]
[1765981248163,1.41149,87872.0,87871.0,0.01779441]
[1765981248352,1.41149,87872.0,87871.0,0.72195441]
[1765981248655,0.68989,87867.0,87866.0,0.0113845]
[1765981248857,0.68989,87864.0,87863.0,0.01155551]
[1765981249061,1.05069,87864.0,87863.0,0.01155551]
[1765981249262,1.05069,87864.0,87863.0,0.36674551]
[1765981249952,1.05069,87864.0,87863.0,0.71571551]
[1765981250152,0.3608,87864.0,87863.0,0.71771551]
[1765981250358,0.3608,87864.0,87863.0,0.71971551]
[1765981250560,0.69149,87864.0,87863.0,0.71971551]
[1765981252053,1.05069,87864.0,87863.0,0.71971551]
[1765981252756,1.05069,87864.0,87863.0,0.00417071]
[1765981254257,1.05069,87864.0,87863.0,0.74871338]
[1765981255658,1.05069,87864.0,87863.0,0.70833071]
[1765981256254,0.3608,87864.0,87863.0,0.70833071]
[1765981257565,1.16737485,87873.0,87872.0,0.70416]
[1765981257767,1.05069,87873.0,87872.0,0.70416]
[1765981258468,1.05069,87873.0,87872.0,0.77586351]
[1765981259566,1.05069,87873.0,87872.0,0.7155438]
[1765981259765,0.3608,87873.0,87872.0,0.77586351]
[1765981260267,0.3608,87873.0,87872.0,0.7155438]
[1765981260465,0.00017071,87880.0,87872.0,0.7155438]
[1765981260466,0.00017071,87880.0,87879.0,0.7155429]
[1765981261060,0.00017071,87880.0,87879.0,0.77614956]
[1765981261459,0.69006071,87880.0,87879.0,0.7155429]
[1765981261970,0.69006071,87880.0,87879.0,0.70416]
[1765981262171,0.68989,87874.0,87873.0,0.06060666]
[1765981262367,0.68989,87873.0,87872.0,0.71572]
[1765981262669,0.68989,87873.0,87872.0,0.71672]
[1765981262971,0.68989,87873.0,87872.0,1.07191]
[1765981263171,0.68989,87873.0,87872.0,1.07091]
[1765981264159,0.36097071,87880.0,87879.0,0.35519]
[1765981264365,1.05086071,87880.0,87879.0,0.0113829]
[1765981264560,0.36097071,87880.0,87876.0,0.0113832]
[1765981264767,0.68155,87875.0,87874.0,0.04036765]
[1765981264962,0.68155,87872.0,87871.0,0.05175145]
[1765981265161,0.68155,87872.0,87857.0,0.08106662]
[1765981265162,1.04235,87872.0,87870.0,0.04036765]
[1765981265370,0.68155,87868.0,87867.0,0.0113843]
[1765981267265,0.68155,87868.0,87867.0,0.001]
[1765981267476,0.68155,87868.0,87867.0,0.0133844]
[1765981269380,0.68155,87868.0,87867.0,0.002]
[1765981270176,0.6929348,87864.0,87863.0,0.00017071]
[1765981271780,0.67575,87859.0,87858.0,0.00227641]
[1765981271975,1.03655,87859.0,87858.0,0.00227641]
[1765981273277,0.67575,87851.0,87850.0,0.00017071]
[1765981273481,1.03655,87851.0,87850.0,0.00017071]
[1765981273675,1.0479365,87851.0,87850.0,0.00017071]
[1765981274066,0.67575,87838.0,87836.0,0.05175605]
[1765981274378,0.67575,87831.0,87830.0,0.0113892]
[1765981274576,0.67575,87831.0,87830.0,0.2180792]
[1765981274776,0.67575,87831.0,87830.0,0.9039592]
[1765981274978,0.67575,87831.0,87830.0,0.89257]
[1765981275386,0.00011995,87837.0,87836.0,0.68588]
[1765981275576,0.33170995,87837.0,87836.0,0.68588]
[1765981276092,0.67586995,87837.0,87836.0,0.68588]
[1765981276769,0.00011995,87837.0,87836.0,0.6972684]
[1765981276969,0.47748485,87860.0,87842.0,0.6972677]
[1765981277174,0.3608,87861.0,87851.0,0.68588]
[1765981277375,1.15323485,87861.0,87860.0,0.89257]
[1765981277581,1.03655,87861.0,87860.0,0.89257]
[1765981277978,1.03655,87861.0,87860.0,0.20669]
[1765981278373,0.33159,87853.0,87852.0,0.68605071]
[1765981278577,0.6871355,87859.0,87858.0,0.68588]
[1765981278879,0.6871355,87859.0,87858.0,0.34238]
[1765981279077,0.67575,87853.0,87852.0,0.68605071]
[1765981279278,1.03655,87861.0,87860.0,0.89257]
[1765981279481,1.03655,87861.0,87860.0,0.20669]
[1765981279787,0.33159,87853.0,87852.0,0.68605071]
[1765981279982,0.67675,87859.0,87858.0,0.68588]
[1765981281487,0.67575,87859.0,87858.0,0.89257]
[1765981281783,0.69339,87861.0,87860.0,0.68588]
[1765981281984,1.03755,87861.0,87860.0,0.68588]
[1765981282283,0.67575,87853.0,87852.0,0.00017071]
[1765981282687,1.03655,87853.0,87852.0,0.00017071]
[1765981283091,0.67575,87832.0,87831.0,0.9039591]
[1765981283481,0.67575,87832.0,87831.0,0.89257]
[1765981283682,0.67575,87825.0,87824.0,1.40148]
[1765981283882,0.67575,87819.0,87815.0,0.0113911]
[1765981284081,0.67575,87819.0,87817.0,0.0113909]
[1765981284390,0.67575,87814.0,87813.0,0.2180814]
[1765981284580,0.67575,87814.0,87813.0,0.20669]
[1765981284784,0.67575,87811.0,87810.0,0.71593081]
[1765981285087,0.67575,87811.0,87810.0,0.00017081]
[1765981285591,0.67575,87811.0,87810.0,8.1e-07]
[1765981285796,0.67575,87791.0,87790.0,0.0113944]
[1765981287591,0.3608,87795.0,87794.0,0.6972739]
[1765981287892,0.67592081,87799.0,87798.0,0.6972734]
[1765981288086,0.00017081,87799.0,87798.0,0.6972734]
[1765981289581,0.00017081,87799.0,87796.0,0.3608]
[1765981289582,0.67575,87797.0,87796.0,0.3608]
[1765981289791,0.67575,87797.0,87796.0,0.70318]
[1765981290398,0.33159,87797.0,87796.0,1.04668]
[1765981290698,0.67592081,87799.0,87798.0,0.68588]
[1765981291591,0.00017081,87799.0,87798.0,0.68588]
[1765981292683,0.00017081,87799.0,87798.0,0.68688]
[1765981294388,0.00017081,87799.0,87798.0,0.68588]
[1765981294589,0.00017081,87799.0,87798.0,0.68688]
[1765981294802,0.00017081,87799.0,87798.0,0.68788]
[1765981295197,0.00017081,87799.0,87798.0,0.68588]
[1765981295399,0.00017081,87799.0,87798.0,0.68788]
[1765981295794,0.00017081,87799.0,87798.0,0.68688]
[1765981296297,0.00017081,87799.0,87798.0,0.68788]
[1765981296695,0.66985081,87799.0,87798.0,0.002]
[1765981298100,0.32753,87794.0,87793.0,0.688194]
[1765981298296,0.66968,87794.0,87793.0,0.688194]
[1765981298501,0.66985081,87799.0,87798.0,0.0113934]
[1765981298701,0.66985081,87799.0,87798.0,0.6881934]
[1765981298702,0.32770081,87799.0,87798.0,0.6881934]
[1765981298904,0.67085081,87799.0,87798.0,0.0113934]
[1765981299405,0.66985081,87799.0,87798.0,0.6881934]
[1765981299595,0.66968,87792.0,87791.0,0.54628]
[1765981299790,0.66968,87787.0,87786.0,0.00014653]
[1765981300000,1.03048,87787.0,87786.0,0.00014653]
[1765981300400,1.03048,87787.0,87786.0,0.67694653]
[1765981300996,1.03048,87787.0,87786.0,0.00014653]
[1765981301503,0.36197081,87799.0,87790.0,0.19889]
[1765981301803,1.03065081,87799.0,87798.0,0.6881934]
[1765981302105,1.03065081,87799.0,87798.0,0.3509834]
[1765981302995,1.03065081,87799.0,87798.0,0.0113934]
[1765981304208,0.36097081,87799.0,87798.0,0.6881934]
[1765981304494,0.00117081,87799.0,87798.0,0.6881934]
[1765981305505,0.3608,87812.0,87811.0,0.6881917]
[1765981305712,0.0990566,87850.0,87828.0,0.3509795]
[1765981305713,1.03048,87829.0,87828.0,0.3509795]
[1765981306011,1.03048,87829.0,87828.0,0.6881895]
[1765981306199,1.03048,87829.0,87828.0,0.6768]
[1765981307106,0.3608,87829.0,87828.0,0.6768]
[1765981307503,0.68833,87834.0,87833.0,0.33959]
[1765981307707,1.03048,87834.0,87833.0,0.3509788]
[1765981308409,1.03048,87834.0,87833.0,0.6768]
[1765981308709,0.66968,87829.0,87828.0,0.0113894]
[1765981308895,0.66968,87826.0,87825.0,0.6881898]
[1765981309499,0.32753,87826.0,87825.0,0.6881898]
[1765981311011,0.66968,87826.0,87825.0,0.6881898]
[1765981311206,0.66968,87823.0,87822.0,0.0113902]
[1765981311395,0.66968,87823.0,87822.0,0.6881902]
[1765981311804,0.66968,87823.0,87822.0,0.3509802]
[1765981312002,0.66968,87823.0,87822.0,0.0113902]
[1765981312215,0.66968,87823.0,87822.0,0.6881902]
[1765981313710,1.03048,87834.0,87833.0,0.0113888]
[1765981313908,1.03048,87834.0,87833.0,0.6881888]
[1765981314605,1.03048,87834.0,87833.0,0.6768]
[1765981314909,0.66968,87831.0,87830.0,0.8870792]
[1765981315113,0.66968,87831.0,87830.0,0.87569]
[1765981315612,1.03048,87834.0,87833.0,0.6768]
[1765981315908,1.03248,87834.0,87833.0,0.6768]
[1765981316211,0.66968,87832.0,87831.0,0.0113891]
[1765981316411,0.66968,87829.0,87828.0,0.0113894]
[1765981316813,0.66968,87829.0,87828.0,0.6881894]
[1765981318710,1.03148,87834.0,87833.0,0.6881888]
[1765981318907,0.001,87834.0,87833.0,0.6881888]
[1765981319111,0.00017081,87837.0,87836.0,0.6881884]
[1765981319714,1.03048,87852.0,87851.0,0.3509765]
[1765981320019,1.03048,87852.0,87851.0,0.33959]
[1765981320712,1.0418664,87852.0,87851.0,0.33959]
[1765981320915,1.03048,87852.0,87851.0,0.6768]
[1765981321117,0.66968,87850.0,87849.0,0.19889]
[1765981321320,0.66968,87850.0,87845.0,0.0113872]
[1765981321321,0.66968,87846.0,87845.0,0.0113872]
[1765981321614,0.66968,87846.0,87845.0,0.6881872]
[1765981322213,0.69033,87852.0,87851.0,0.6881865]
[1765981322414,0.67195641,87858.0,87857.0,0.6881857]
[1765981322717,0.67195641,87858.0,87850.0,0.8870766]
[1765981322718,0.66968,87851.0,87850.0,0.8870766]
[1765981323300,0.32980641,87858.0,87857.0,0.6768]
[1765981324915,0.00227641,87858.0,87857.0,0.6768]
[1765981325413,0.00327641,87858.0,87857.0,0.6768]
[1765981325605,0.70343641,87858.0,87857.0,0.33959]
[1765981325808,0.70016,87853.0,87852.0,0.7020763]
[1765981326108,0.70343641,87858.0,87857.0,0.7020757]
[1765981326621,0.00227641,87858.0,87857.0,0.7020757]
[1765981327012,0.3608,87864.0,87863.0,0.7020749]
[1765981328522,1.02875081,87872.0,87871.0,0.7135339]
[1765981330119,1.02975081,87872.0,87871.0,0.7135339]
[1765981330330,0.00117081,87872.0,87871.0,0.7135339]
[1765981330922,0.67127,87864.0,87863.0,0.7179007]
[1765981331216,0.00117081,87872.0,87863.0,0.7179007]
[1765981331217,0.67244081,87872.0,87871.0,0.7291139]
[1765981332619,0.67127,87871.0,87870.0,0.2063]
[1765981332807,0.67127,87871.0,87863.0,0.7179007]
[1765981332808,0.67127,87864.0,87863.0,0.7179007]
[1765981334012,0.00117081,87872.0,87871.0,0.71773]
[1765981335223,0.00017081,87872.0,87871.0,0.71773]
[1765981335823,0.00017081,87872.0,87871.0,0.71873]
[1765981337217,0.34730081,87872.0,87871.0,0.71873]
[1765981337517,0.67144081,87872.0,87871.0,1.43365]
[1765981338311,0.34730081,87872.0,87871.0,1.43365]
[1765981338910,0.34830081,87872.0,87871.0,1.43265]
[1765981339111,0.00117081,87872.0,87871.0,1.43265]
[1765981339312,0.00017081,87872.0,87871.0,1.43265]
[1765981339524,0.00117081,87872.0,87871.0,1.43265]
[1765981339714,0.00117081,87872.0,87871.0,1.43365]
[1765981340712,0.34830081,87872.0,87871.0,1.43365]
[1765981340916,0.67244081,87872.0,87871.0,1.43365]
[1765981341113,0.67144081,87872.0,87871.0,1.43365]
[1765981341318,0.67144081,87872.0,87871.0,0.001]
[1765981341729,0.67144081,87872.0,87871.0,0.0123839]
[1765981342120,0.67127,87869.0,87868.0,0.0113842]
[1765981342833,0.67127,87868.0,87867.0,0.514]
[1765981343020,0.67127,87867.0,87866.0,0.0113845]
[1765981343728,0.67127,87867.0,87866.0,0.7291145]
[1765981344233,0.3608,87869.0,87868.0,0.71773]
[1765981344431,0.70793,87869.0,87868.0,0.71773]
[1765981344631,1.03407,87869.0,87868.0,0.71773]
[1765981344932,0.3628,87869.0,87868.0,0.71773]
[1765981345131,0.3608,87869.0,87868.0,0.71773]
[1765981345823,0.70893,87869.0,87868.0,0.71773]
[1765981346020,0.001,87869.0,87868.0,0.71773]
[1765981347234,0.001,87869.0,87868.0,0.747847]
[1765981347924,0.00017081,87872.0,87871.0,0.71773]
[1765981348227,0.00017081,87872.0,87871.0,1.43245]
[1765981349231,0.00017081,87872.0,87871.0,1.463567]
[1765981349433,0.00017081,87872.0,87871.0,1.46364395]
[1765981349834,0.00017081,87872.0,87871.0,1.43345]
[1765981350133,0.00017081,87872.0,87871.0,1.46364395]
[1765981350526,0.67144081,87872.0,87871.0,1.10570395]
[1765981350717,0.67144081,87872.0,87871.0,1.07551]
[1765981350922,0.67144081,87872.0,87871.0,0.001]
[1765981351639,0.67127,87868.0,87867.0,0.2176843]
[1765981352134,0.67127,87868.0,87867.0,0.5774743]
[1765981353736,0.67127,87868.0,87867.0,0.96560825]
[1765981354133,1.03207,87868.0,87867.0,0.96560825]
[1765981354331,1.03207,87868.0,87867.0,0.9354143]
[1765981354533,1.03207,87868.0,87866.0,0.0113845]
[1765981354534,0.66158,87867.0,87866.0,0.0113845]
[1765981354928,0.66158,87865.0,87864.0,0.03019395]
[1765981355128,0.6729648,87864.0,87863.0,0.0001707]
[1765981355330,1.0337648,87864.0,87863.0,0.0001707]
[1765981355842,0.66158,87856.0,87855.0,0.0113859]
[1765981356027,1.02238,87856.0,87855.0,0.0113859]
[1765981356335,0.3608,87856.0,87850.0,0.0113865]
[1765981356535,0.66158,87851.0,87850.0,0.0113865]
[1765981356737,0.66158,87851.0,87850.0,0.9069365]
[1765981358135,0.33417,87851.0,87850.0,0.9069365]
[1765981358325,0.001,87851.0,87850.0,0.9069365]
[1765981359534,0.003,87851.0,87850.0,0.9069365]
[1765981360346,0.002,87851.0,87850.0,0.9069365]
[1765981360633,0.002,87851.0,87850.0,0.89555]
[1765981360834,0.33617,87851.0,87850.0,0.89555]
[1765981361037,0.69497,87856.0,87855.0,0.68602]
[1765981361638,1.02238,87856.0,87855.0,0.68602]